bitfinex/quotes_ETHUSD_20220201
["timestamp","ask_amount","ask_price","bid_price","bid_amount"]
[1643727818663,0.428,2741.8,2740.0,0.00117916]
[1643727819059,0.01287817,2741.5,2740.0,0.00117916]
[1643727819259,0.1822,2741.4,2739.9,1.13042584]
[1643727819460,0.43229218,2740.7,2739.9,1.13042584]
[1643727819700,0.43229218,2740.7,2739.9,1.0944]
[1643727820109,0.43229218,2740.7,2738.9,1.15127916]
[1643727820110,2.40840688,2740.6,2738.9,1.15127916]
[1643727820301,0.01206942,2740.1,2739.1,2.48475633]
[1643727820499,0.37380033,2739.7,2739.1,1.2033]
[1643727820698,0.428,2740.1,2739.1,1.2033]
[1643727820699,2.55041526,2740.0,2739.1,1.2033]
[1643727820898,0.428,2740.1,2739.1,1.2033]
[1643727821313,0.01294512,2740.7,2737.7,0.007]
[1643727821314,0.99999999,2739.6,2737.7,0.007]
[1643727821509,0.01267794,2738.3,2737.8,1.40840958]
[1643727821738,0.01219189,2737.9,2735.4,0.33233251]
[1643727821915,0.01266661,2737.0,2735.4,0.36674645]
[1643727822109,0.01266661,2737.0,2735.5,0.04945285]
[1643727822302,0.428,2737.5,2736.1,0.80584869]
[1643727822504,0.01291527,2737.7,2736.1,0.80584869]
[1643727822809,0.13819997,2738.2,2736.2,0.0182]
[1643727823002,0.32039997,2738.3,2736.1,0.05594689]
[1643727823204,2.02031068,2738.5,2736.1,1.71247689]
[1643727823205,0.01278626,2738.5,2736.1,1.71247689]
[1643727823456,1.01260673,2738.6,2736.2,2.0461008]
[1643727823657,0.01223888,2737.3,2735.7,1.82642]
[1643727823857,0.99999999,2736.7,2735.4,0.33233251]
[1643727824063,0.1822,2736.8,2735.4,0.33233251]
[1643727824262,16.5,2736.1,2735.4,0.33233251]
[1643727824458,16.5,2736.1,2735.6,0.88372198]
[1643727824657,16.5,2736.1,2735.5,0.4262327]
[1643727825063,0.0128135,2736.0,2735.5,0.4262327]
[1643727825259,16.5,2736.1,2735.5,0.4262327]
[1643727825462,16.5,2736.1,2735.5,0.46228233]
[1643727825658,16.5,2736.1,2736.0,0.37471167]
[1643727828036,16.5,2736.1,2734.7,2.03915176]
[1643727828037,6.65,2736.0,2734.1,0.0328]
[1643727828231,0.99999999,2734.4,2734.1,0.0328]
[1643727828531,0.40699237,2734.7,2734.1,0.0328]
[1643727828730,16.5,2734.3,2734.1,0.0328]
[1643727828928,16.5,2734.3,2734.2,0.32502682]
[1643727828929,16.928,2734.3,2734.2,0.32502682]
[1643727829230,9.0,2734.3,2734.2,0.32502682]
[1643727829429,8.58785998,2734.3,2734.2,0.32502682]
[1643727830029,8.57772598,2734.3,2734.2,0.32502682]
[1643727830229,0.03749082,2735.8,2734.2,0.32502682]
[1643727830230,0.1822,2735.7,2734.2,0.62502682]
[1643727830428,1.45649263,2736.3,2734.2,0.62502682]
[1643727830429,1.5,2735.0,2734.2,0.62502682]
[1643727830633,0.99999999,2735.8,2734.2,1.05302682]
[1643727830831,0.99999999,2735.8,2734.2,0.62502682]
[1643727831057,3.00752441,2735.7,2735.4,0.44886226]
[1643727831262,0.1822,2735.8,2734.1,0.0328]
[1643727831458,0.1822,2735.7,2734.1,0.0328]
[1643727831663,0.19512396,2735.7,2734.1,0.0328]
[1643727831858,0.99999999,2735.2,2734.1,0.0328]
[1643727832061,0.99999999,2735.0,2734.1,0.0328]
[1643727832258,0.99999999,2735.0,2734.6,0.7432506]
[1643727832459,0.99999999,2735.4,2734.6,0.7432506]
[1643727832758,1.01292395,2735.7,2734.6,0.7432506]
[1643727833162,0.99999999,2735.7,2734.6,0.7432506]
[1643727833358,0.99999999,2735.7,2734.7,0.3947476]
[1643727833561,0.99999999,2735.7,2734.7,0.6447476]
[1643727833759,2.00752442,2736.6,2736.3,0.73194239]
[1643727833960,1.27379263,2736.8,2735.0,0.01251164]
[1643727834162,0.29514261,2737.0,2735.0,0.01251164]
[1643727834163,0.29514261,2737.0,2735.2,0.02576]
[1643727834359,2.00752442,2736.9,2735.2,0.02576]
[1643727834561,0.45080839,2736.5,2734.3,0.47580109]
[1643727834806,0.45080839,2736.5,2734.8,0.99999999]
[1643727834807,0.0121376,2736.5,2734.8,0.99999999]
[1643727835007,0.13819997,2737.0,2734.9,0.04296833]
[1643727835209,0.13819997,2737.0,2735.3,0.0182]
[1643727835410,0.13819997,2737.0,2735.4,0.02576]
[1643727835606,0.13819997,2737.0,2736.8,0.40492985]
[1643727836011,0.13819997,2737.0,2735.0,0.45037081]
[1643727836012,0.13819997,2737.0,2735.0,0.43902253]
[1643727836212,0.13819997,2737.0,2735.0,0.45941759]
[1643727836431,0.01297694,2736.5,2734.6,2.4247]
[1643727836614,1.61741,2736.4,2734.6,2.45659323]
[1643727837014,2.00752442,2736.3,2736.2,0.37337438]
[1643727837214,1.61741,2736.3,2736.2,0.37337438]
[1643727837412,2.46068,2736.3,2734.7,2.03786501]
[1643727837712,2.46068,2736.3,2734.6,2.4247]
[1643727837713,3.52156,2736.3,2734.6,2.45881129]
[1643727837912,3.67850264,2736.3,2734.7,2.00752442]
[1643727838119,2.00752442,2736.2,2734.6,1.2141]
[1643727838318,0.01214099,2735.8,2734.9,0.86588282]
[1643727838569,0.01214099,2735.8,2734.1,0.0328]
[1643727838570,0.0121894,2735.2,2734.1,0.0328]
[1643727838769,1.61741,2735.1,2734.1,0.0328]
[1643727838967,1.77435264,2735.1,2733.8,0.00108946]
[1643727839169,1.61741,2735.1,2733.8,0.01928946]
[1643727839567,1.61741,2735.1,2734.0,0.36440562]
[1643727839968,1.61741,2735.1,2734.9,0.71667262]
[1643727840169,1.10640786,2735.1,2734.0,0.39482122]
[1643727840372,0.15694264,2736.2,2734.4,0.99999999]
[1643727840569,0.15694264,2736.7,2734.5,2.92137442]
[1643727840770,0.15694264,2736.7,2734.6,0.3]
[1643727840977,0.01295946,2735.9,2734.7,0.02302551]
[1643727841172,1.43073527,2736.9,2734.7,0.02302551]
[1643727841173,0.15694264,2736.9,2734.7,0.02302551]
[1643727841371,0.1827,2737.7,2734.7,1.02302551]
[1643727841573,0.1827,2737.7,2735.4,0.03673752]
[1643727841574,0.0120677,2737.7,2735.4,0.03673752]
[1643727841776,1.27379263,2738.1,2737.4,0.35715918]
[1643727842202,0.15694264,2738.3,2737.7,1.21771551]
[1643727842408,0.15694264,2738.3,2737.4,0.35715918]
[1643727842606,0.15694264,2738.3,2737.4,0.01170991]
[1643727842807,0.01280108,2738.1,2736.3,0.00100383]
[1643727843009,0.01280108,2738.1,2736.2,4.49424874]
[1643727843010,0.15694264,2738.0,2736.2,4.49424874]
[1643727843206,0.01280108,2738.1,2736.3,0.03759743]
[1643727843407,1.61741,2737.9,2737.3,0.9191459]
[1643727843612,1.61741,2737.9,2737.7,0.43990873]
[1643727843807,1.61741,2737.9,2736.3,0.91425383]
[1643727843808,0.15694264,2737.8,2736.5,0.91322]
[1643727844012,0.15694264,2737.8,2736.3,0.00100383]
[1643727844013,0.01286558,2737.2,2736.3,0.00100383]
[1643727844211,0.01286558,2737.2,2735.5,2.4024]
[1643727844212,0.01286558,2737.2,2735.7,0.00100383]
[1643727844608,0.16980822,2737.2,2735.7,0.00100383]
[1643727844807,0.16980822,2737.2,2736.5,0.95461898]
[1643727844808,0.01286558,2737.2,2736.5,0.95461898]
[1643727845008,0.01286558,2737.2,2735.5,2.4024]
[1643727845009,0.16980822,2737.2,2735.5,2.4024]
[1643727845209,1.89380993,2737.7,2735.7,0.99999999]
[1643727845409,1.89380993,2737.7,2735.6,0.31281831]
[1643727845410,1.89380993,2737.7,2735.6,0.3168838]
[1643727845618,0.01256308,2737.4,2735.6,1.3]
[1643727845810,2.15850232,2737.6,2735.6,1.3]
[1643727845811,0.01225894,2736.7,2735.6,1.3]
[1643727846058,0.15694264,2736.6,2735.5,1.1928]
[1643727846264,0.01225894,2736.7,2736.3,0.4439435]
[1643727846457,0.15694264,2736.8,2736.3,0.4439435]
[1643727846960,0.32895264,2736.8,2735.5,1.1928]
[1643727847162,0.01293542,2736.6,2735.5,1.1928]
[1643727847362,0.01293542,2736.6,2734.8,0.00100383]
[1643727847559,0.15694264,2736.5,2734.8,0.00100383]
[1643727847761,0.01701973,2736.6,2736.0,0.38926287]
[1643727847959,0.15694264,2736.7,2736.0,0.38926287]
[1643727848964,0.01274554,2737.4,2736.0,0.68926287]
[1643727849164,0.27639993,2737.7,2736.0,0.68926287]
[1643727849364,0.27639993,2737.7,2736.0,0.70166526]
[1643727849562,1.06088,2738.0,2736.0,1.04016422]
[1643727849810,1.61741,2737.9,2737.6,0.37686929]
[1643727850025,1.61741,2737.9,2737.6,1.26897627]
[1643727850211,1.61741,2737.9,2737.6,0.37686929]
[1643727851011,1.61741,2737.9,2736.6,0.0357857]
[1643727851212,1.61741,2737.9,2736.3,0.0195664]
[1643727851213,2.06109264,2737.7,2736.3,0.60100383]
[1643727851416,1.61741,2737.6,2736.3,0.6]
[1643727851613,1.61741,2737.6,2736.2,1.0]
[1643727851812,1.61741,2737.6,2736.5,0.91332]
[1643727852013,1.61741,2737.6,2736.5,1.8266355]
[1643727852213,1.61741,2737.6,2736.6,0.6]
[1643727852411,1.61741,2737.6,2736.6,0.63633468]
[1643727852613,1.61741,2737.6,2736.6,0.64822564]
[1643727852911,0.16894801,2738.6,2736.6,0.65052244]
[1643727853111,0.16894801,2738.6,2738.3,0.35435278]
[1643727853312,0.16894801,2738.6,2738.1,0.95044404]
[1643727853313,0.16894801,2738.6,2738.1,0.8621644]
[1643727853551,0.16894801,2738.6,2736.9,1.32487363]
[1643727853856,0.17201,2739.3,2736.9,1.32487363]
[1643727853857,2.00155968,2739.3,2737.1,0.91296]
[1643727854058,0.01270586,2739.1,2737.2,0.4643552]
[1643727854356,0.01270586,2739.1,2738.8,0.42427771]
[1643727854652,0.16930111,2740.0,2738.8,1.54936111]
[1643727854854,0.01235847,2740.0,2738.8,1.56660978]
[1643727855053,0.13819996,2740.4,2738.8,1.56660978]
[1643727855252,0.2951426,2740.4,2738.8,1.86660978]
[1643727855452,0.13819996,2740.4,2739.7,0.32626856]
[1643727855852,0.13819996,2740.4,2739.6,0.3]
[1643727856257,0.13819996,2740.4,2738.9,1.03257837]
[1643727856458,0.13819996,2740.4,2739.0,2.4473189]
[1643727856662,0.13819996,2740.4,2739.1,0.9125284]
[1643727856960,0.15694264,2740.6,2738.7,2.8251196]
[1643727856961,0.32895264,2740.3,2738.7,2.8251196]
[1643727857216,0.01273248,2739.1,2738.3,0.317]
[1643727858011,0.15694264,2739.7,2738.3,0.317]
[1643727858214,0.01256778,2739.1,2738.3,0.317]
[1643727858415,0.15694264,2739.0,2738.3,0.317]
[1643727858612,0.31870405,2738.4,2738.3,0.317]
[1643727858812,0.87574831,2738.4,2738.3,0.317]
[1643727860112,0.87574831,2738.4,2736.6,0.78249908]
[1643727860316,0.87574831,2738.4,2736.6,0.86425]
[1643727860514,0.88414911,2738.4,2737.5,0.75861845]
[1643727860717,0.87574831,2738.4,2737.5,0.75861845]
[1643727861363,0.7062,2738.4,2737.6,0.3791849]
[1643727861763,0.7062,2738.4,2737.6,0.6791849]
[1643727861959,0.7062,2738.4,2738.3,0.73511755]
[1643727862162,0.7062,2738.4,2737.6,0.6791849]
[1643727862163,0.15694264,2739.6,2737.7,2.0]
[1643727862362,9.90231636,2740.4,2737.7,4.03505365]
[1643727862363,0.16961701,2740.0,2737.7,4.03505365]
[1643727862562,1.54097489,2739.9,2738.2,0.99999999]
[1643727862766,1.27379263,2740.4,2738.3,2.46483679]
[1643727863060,0.15694264,2741.0,2739.6,0.79180564]
[1643727863061,0.01216928,2740.8,2739.6,0.79180564]
[1643727863261,1.54067542,2740.7,2739.6,0.79180564]
[1643727863462,0.87492373,2741.0,2739.6,0.79180564]
[1643727863463,1.54067542,2740.6,2739.6,0.79180564]
[1643727863661,0.87492373,2741.3,2739.6,0.79180564]
[1643727863662,0.01244858,2741.2,2740.4,0.43052312]
[1643727863861,0.66796977,2741.2,2739.6,0.79180564]
[1643727864062,1.54057662,2741.1,2741.0,0.87819964]
[1643727864268,2.19609781,2741.2,2739.4,2.04870479]
[1643727864460,1.54057662,2741.1,2739.4,3.04870479]
[1643727864709,1.54057662,2741.1,2739.5,1.0]
[1643727864908,1.54057662,2741.1,2739.5,1.04008052]
[1643727864909,1.54057662,2741.0,2739.5,1.04008052]
[1643727865115,0.01236017,2740.5,2739.5,0.00910071]
[1643727865414,0.01218568,2741.2,2739.5,0.00910071]
[1643727865415,0.65552119,2741.3,2739.7,0.3]
[1643727865715,0.65552119,2741.3,2739.5,0.00910071]
[1643727865716,0.65552119,2741.1,2739.5,0.00910071]
[1643727865913,1.54043432,2741.0,2739.5,0.00910071]
[1643727866113,1.54043432,2741.0,2739.5,0.87246071]
[1643727866316,1.54043432,2740.9,2739.7,0.86274]
[1643727866514,1.04441599,2741.5,2739.7,0.86274]
[1643727866515,1.54043432,2740.8,2739.8,1.6543]
[1643727866716,0.01254962,2741.5,2739.9,3.02590999]
[1643727866717,0.66807081,2741.5,2739.9,3.02590999]
[1643727866920,1.24821896,2741.7,2740.0,4.11769535]
[1643727866921,1.54016664,2741.4,2740.0,4.11769535]
[1643727867115,1.54016664,2741.4,2740.4,0.86252]
[1643727867317,1.54016664,2741.3,2740.8,1.60969971]
[1643727867515,1.76554019,2741.7,2741.0,0.86289]
[1643727867516,1.54016664,2741.2,2741.0,0.86289]
[1643727867715,1.76554019,2741.7,2741.0,0.86289]
[1643727867919,0.0126597,2741.4,2740.9,2.7393]
[1643727868118,0.15694264,2741.3,2740.5,1.8235598]
[1643727868316,0.65552119,2741.3,2739.6,1.8241854]
[1643727868599,1.110019,2741.7,2740.2,0.01298671]
[1643727868783,1.110019,2741.7,2740.6,1.823674]
[1643727868984,1.110019,2741.7,2741.6,0.83964722]
[1643727869185,1.110019,2741.7,2740.5,2.7353134]
[1643727869384,1.110019,2741.7,2740.6,0.39445844]
[1643727869595,1.110019,2741.7,2740.6,1.39445844]
[1643727869787,1.110019,2741.7,2740.6,0.39445844]
[1643727869986,0.15694264,2742.9,2740.8,0.9117797]
[1643727870186,0.15694264,2742.9,2740.9,0.02276386]
[1643727870397,0.15694264,2742.9,2740.9,0.32276386]
[1643727870887,0.15694264,2742.9,2742.2,0.91430279]
[1643727871689,0.15694264,2743.1,2742.2,0.91430279]
[1643727872310,4.17357289,2743.3,2741.5,0.9115365]
[1643727872508,5.04849662,2743.3,2741.0,1.0]
[1643727872708,5.05279597,2743.3,2740.9,0.01296088]
[1643727873114,0.87492373,2743.2,2740.9,0.01296088]
[1643727873315,0.45030674,2743.3,2741.0,0.9117448]
[1643727873515,0.45030674,2743.3,2741.3,1.8231195]
[1643727873516,2.0,2743.2,2741.3,1.8231195]
[1643727873717,2.0,2743.2,2741.3,1.82683998]
[1643727873718,0.15694264,2743.1,2741.3,1.82683998]
[1643727873914,0.15694264,2743.1,2741.3,1.8231195]
[1643727873915,0.01200168,2742.6,2741.3,1.8231195]
[1643727874217,0.01200168,2742.6,2741.4,0.3694803]
[1643727874418,0.15694264,2743.1,2742.2,0.74187114]
[1643727874619,0.15694264,2743.1,2741.4,1.3194803]
[1643727874821,0.15694264,2743.1,2741.4,0.3194803]
[1643727875315,0.18228,2743.0,2741.2,1.8231291]
[1643727875517,0.18228,2743.0,2740.6,0.91162]
[1643727875518,1.0,2742.3,2740.4,2.16951554]
[1643727875719,1.0,2742.3,2740.0,2.0]
[1643727875720,0.01252341,2742.0,2740.0,2.0]
[1643727875961,0.01252341,2742.0,2740.4,0.95071694]
[1643727875962,0.18228,2741.9,2740.4,0.95071694]
[1643727876369,0.18228,2741.9,2741.4,0.32519576]
[1643727876765,0.18228,2741.9,2740.4,0.95071694]
[1643727876964,0.18228,2741.9,2741.1,0.79107528]
[1643727877169,0.18228,2741.9,2739.8,1.1497]
[1643727877365,1.19598548,2741.9,2739.8,1.1497]
[1643727877567,1.49598548,2741.9,2739.8,1.1497]
[1643727877764,0.41535328,2741.6,2740.6,0.44730173]
[1643727877968,0.18228,2741.5,2740.6,0.44730173]
[1643727878364,0.18228,2741.5,2740.6,1.34310873]
[1643727878565,1.0,2741.3,2739.8,1.1497]
[1643727878770,1.0,2740.9,2738.6,1.2209]
[1643727878966,0.01208682,2740.6,2738.6,1.2209]
[1643727879273,0.18228,2740.5,2738.6,1.2209]
[1643727879466,0.18228,2740.8,2740.4,0.72561719]
[1643727879724,0.18228,2741.2,2739.2,0.20800241]
[1643727879922,0.18228,2741.2,2739.5,0.9123052]
[1643727880217,0.18228,2741.2,2739.2,0.01243526]
[1643727880419,0.18228,2741.2,2738.9,0.03638323]
[1643727880621,0.18228,2741.2,2738.9,0.6]
[1643727880622,0.01265839,2740.9,2738.9,0.6]
[1643727880819,0.41608583,2740.1,2739.0,1.29776835]
[1643727881025,0.18228,2740.0,2739.0,1.29776835]
[1643727881423,0.17201,2740.5,2739.0,2.21029085]
[1643727881424,0.18228,2740.5,2739.0,2.21029085]
[1643727882124,0.18228,2740.8,2740.3,1.33602953]
[1643727882328,0.18228,2740.8,2739.2,0.94945211]
[1643727882525,0.18228,2740.8,2739.2,0.91244]
[1643727882823,0.18228,2740.8,2739.3,0.6]
[1643727883026,0.18228,2740.8,2739.3,0.60836994]
[1643727883226,0.01287519,2741.5,2739.7,0.9123139]
[1643727883462,0.01287519,2741.5,2741.3,0.37833456]
[1643727883669,0.18228,2741.7,2740.0,0.0125918]
[1643727883867,1.5,2741.5,2740.0,0.02378468]
[1643727884069,2.0,2742.1,2740.0,0.02378468]
[1643727884070,0.18228,2741.6,2740.0,0.01119288]
[1643727884269,0.18228,2741.6,2741.0,0.8548929]
[1643727884469,0.98530593,2742.2,2741.0,0.8548929]
[1643727884470,0.27639993,2742.2,2741.0,0.8548929]
[1643727884669,0.27639993,2742.2,2741.9,0.36287033]
[1643727885169,0.18228,2742.4,2741.9,0.36287033]
[1643727885570,3.78552548,2743.1,2741.9,0.36287033]
[1643727885571,0.2322344,2743.4,2741.9,0.36287033]
[1643727885777,0.67200292,2743.5,2742.4,0.01204713]
[1643727885970,0.33295113,2744.1,2743.1,0.3593015]
[1643727886170,0.02585,2744.1,2743.1,0.3593015]
[1643727886573,0.02585,2744.2,2742.5,0.14306251]
[1643727886770,0.02585,2744.0,2742.5,0.14306251]
[1643727886969,0.23107,2744.0,2742.5,0.14306251]
[1643727887221,1.09266661,2744.0,2742.5,0.14306251]
[1643727887422,1.09266661,2744.0,2742.5,0.13819997]
[1643727887423,0.01293096,2743.5,2742.5,0.13819997]
[1643727887621,0.02585,2743.4,2742.9,0.40394149]
[1643727887920,1.48941647,2743.3,2742.9,0.40394149]
[1643727888121,0.02585,2743.2,2742.9,0.40394149]
[1643727888319,0.02585,2743.2,2743.1,19.36263575]
[1643727889422,0.02585,2743.4,2743.1,19.36263575]
[1643727889620,1.5,2743.2,2743.1,19.36263575]
[1643727890724,0.02585,2743.8,2743.1,19.36263575]
[1643727890965,0.01263523,2744.3,2743.1,19.36263575]
[1643727891172,0.02585,2744.2,2743.1,19.36263575]
[1643727891369,0.01263523,2744.3,2743.1,19.36263575]
[1643727891668,0.02585,2744.5,2743.8,0.88320102]
[1643727891869,3.6,2744.3,2743.2,1.93533442]
[1643727892070,3.6,2744.3,2743.1,19.36263575]
[1643727892071,0.02585,2744.2,2743.1,19.36263575]
[1643727892270,0.02585,2744.2,2743.2,1.0]
[1643727892675,0.02585,2744.4,2743.2,1.3]
[1643727892871,0.02585,2744.4,2743.2,3.1223576]
[1643727893174,0.01292837,2745.1,2743.4,0.9112172]
[1643727893375,0.1822,2745.6,2744.0,0.0167438]
[1643727893577,0.02017066,2743.9,2743.7,0.91103]
[1643727893773,0.01206421,2745.1,2743.7,0.91103]
[1643727894172,0.01206421,2745.1,2744.4,0.72845761]
[1643727894375,0.01206421,2745.1,2744.4,0.3719589]
[1643727894573,0.01206421,2745.1,2743.7,0.91103]
[1643727895017,6.65,2745.0,2743.3,2.10724674]
[1643727895223,6.65,2745.0,2742.8,3.83716072]
[1643727895224,1.0,2744.1,2742.8,3.64333]
[1643727895419,8.65,2744.9,2741.8,3.80115]
[1643727895420,1.43793171,2743.2,2741.8,3.80115]
[1643727895618,0.01296519,2743.0,2740.8,2.0]
[1643727895821,0.01296519,2743.0,2741.0,0.91186]
[1643727895822,0.01295501,2742.3,2741.0,0.91186]
[1643727896024,0.02097031,2742.3,2741.0,0.91186]
[1643727896229,1.428,2742.2,2740.4,0.9120566]
[1643727896430,0.77545267,2742.0,2740.9,0.89701768]
[1643727896623,0.77545267,2742.0,2741.1,0.31509621]
[1643727896624,0.01538221,2742.0,2741.1,0.31509621]
[1643727896824,0.01108563,2742.0,2741.1,0.31509621]
[1643727897025,0.01108563,2742.0,2740.9,0.89701768]
[1643727897223,0.04460563,2742.0,2740.9,0.89701768]
[1643727897423,0.04460563,2742.0,2739.1,3.18681069]
[1643727897424,5.5,2741.8,2739.1,3.18681069]
[1643727897629,2.01371973,2741.7,2739.5,0.01228769]
[1643727897940,0.01295501,2742.3,2739.9,0.9122477]
[1643727897941,2.428,2742.1,2739.9,0.9122477]
[1643727898127,0.16958501,2742.3,2742.0,0.34089759]
[1643727898128,0.01295501,2742.3,2742.0,0.34089759]
[1643727898325,0.15663,2743.0,2742.0,0.34089759]
[1643727898569,0.15663,2743.1,2742.0,0.34089759]
[1643727898770,0.15663,2743.1,2742.5,0.76717561]
[1643727899372,0.15663,2743.4,2742.5,0.76717561]
[1643727899573,0.15663,2743.4,2742.5,1.06717561]
[1643727899774,0.01261985,2743.5,2742.5,1.06717561]
[1643727899974,2.0,2743.9,2743.7,0.8835263]
[1643727900175,0.15663,2744.0,2743.4,0.39574497]
[1643727900381,0.0122693,2743.7,2742.0,1.3940324]
[1643727900876,0.0122693,2743.7,2742.1,0.09538343]
[1643727901073,0.0122693,2743.7,2742.2,0.61052]
[1643727901277,0.0122693,2743.7,2743.2,0.72020408]
[1643727901478,0.11923,2744.4,2743.2,0.72020408]
[1643727901680,1.08092847,2744.7,2743.2,0.72020408]
[1643727901681,0.05103,2744.7,2743.2,0.72020408]
[1643727901878,0.13819997,2744.9,2743.3,0.18252]
[1643727902215,0.01693,2744.8,2744.3,0.78376151]
[1643727902613,0.0126897,2744.6,2744.3,0.78376151]
[1643727903221,0.82595394,2745.4,2743.5,4.45]
[1643727903425,4.95477,2746.2,2743.5,4.45]
[1643727903426,0.01277082,2745.6,2743.7,1.82167]
[1643727903620,0.01277082,2745.6,2743.8,2.65921522]
[1643727903817,0.01277082,2745.6,2743.8,2.69127803]
[1643727904118,1.29137358,2746.3,2744.5,1.8213499]
[1643727904319,0.4492704,2746.0,2744.7,1.82119]
[1643727904520,0.01289796,2745.8,2744.0,1.428]
[1643727904718,0.01235881,2745.2,2743.7,5.464327]
[1643727905117,0.01235881,2745.2,2744.6,0.88446858]
[1643727905319,0.33129425,2744.8,2743.8,0.9110158]
[1643727905522,0.01292897,2744.6,2742.7,1.1865]
[1643727905730,0.02012552,2744.6,2742.9,0.03067233]
[1643727905977,0.00462691,2745.1,2743.0,0.18252]
[1643727906184,0.00462691,2745.1,2743.3,0.03654725]
[1643727906375,0.01256954,2745.3,2744.4,0.84114549]
[1643727906574,0.01256954,2745.3,2743.3,2.92054004]
[1643727906575,0.01256954,2745.3,2743.4,0.03849629]
[1643727906876,0.01256954,2745.3,2743.7,0.39290132]
[1643727907178,0.01256954,2745.3,2743.2,0.3988849]
[1643727907179,0.01287255,2744.6,2743.2,0.3988849]
[1643727907375,0.02091643,2744.6,2743.2,0.3988849]
[1643727907574,0.428,2744.5,2743.2,0.3988849]
[1643727907777,0.01217967,2743.9,2742.9,0.13819997]
[1643727907977,0.01423397,2743.5,2742.5,0.43493019]
[1643727908174,0.01423397,2743.5,2741.8,1.26222565]
[1643727908175,1.53898606,2743.4,2741.8,1.26222565]
[1643727908384,1.53898606,2743.4,2741.9,0.13819997]
[1643727908385,1.55218638,2743.4,2741.9,0.13819997]
[1643727908574,1.53898606,2743.3,2742.0,3.6447571]
[1643727908775,1.53898606,2743.3,2743.0,0.87737755]
[1643727909076,1.53907837,2743.2,2742.0,4.7299771]
[1643727909277,4.22399501,2743.1,2742.0,4.7299771]
[1643727909480,1.53907837,2743.0,2742.0,1.08522]
[1643727909770,1.53907837,2743.0,2742.0,0.9116539]
[1643727909964,3.32690363,2743.6,2742.0,2.7349265]
[1643727910164,1.53908517,2743.5,2742.1,0.03321714]
[1643727910365,0.01217967,2743.9,2742.2,1.82288]
[1643727910366,1.53908517,2743.4,2742.2,1.82288]
[1643727910565,1.53908517,2743.3,2742.2,1.86173259]
[1643727910769,3.75591608,2743.2,2742.2,1.86173259]
[1643727910971,1.53908517,2743.1,2742.0,1.85335855]
[1643727911370,1.53908517,2743.0,2742.0,1.8232726]
[1643727911572,1.53908517,2742.9,2742.3,0.44893776]
[1643727911769,2.64520568,2743.4,2742.3,0.44893776]
[1643727911969,1.53914785,2743.3,2742.0,1.8232726]
[1643727912169,2.2792014,2743.2,2742.0,2.1232726]
[1643727912372,1.53914785,2743.1,2742.0,1.8232726]
[1643727912570,2.7037868,2743.0,2741.4,2.7349978]
[1643727912770,1.54374258,2742.9,2741.4,0.9118678]
[1643727912969,0.43632284,2742.6,2741.5,0.33698877]
[1643727913172,1.53914785,2742.5,2741.5,0.33698877]
[1643727913369,1.53914785,2742.5,2741.8,0.7169946]
[1643727913975,3.59149251,2742.4,2741.4,0.9118678]
[1643727914177,3.59149251,2742.4,2740.9,1.08567]
[1643727914178,0.01281839,2742.0,2740.9,1.08567]
[1643727914380,0.01240526,2741.4,2740.9,1.08567]
[1643727914586,1.96714785,2741.3,2738.9,3.5768]
[1643727914778,3.59149251,2741.2,2738.9,3.60735098]
[1643727914976,3.59149251,2741.2,2739.6,0.87864734]
[1643727914977,0.87420321,2740.6,2739.6,0.87864734]
[1643727915174,0.01215896,2740.7,2739.6,0.87864734]
[1643727915175,0.428,2740.7,2739.6,0.87864734]
[1643727915375,0.43402811,2740.7,2739.6,0.87864734]
[1643727915575,0.428,2740.7,2739.6,0.87864734]
[1643727916178,0.36347261,2740.4,2739.6,0.87864734]
[1643727916377,0.428,2740.7,2739.6,0.87864734]
[1643727916778,0.65144214,2741.9,2739.6,0.89157455]
[1643727916978,0.65144214,2741.9,2739.9,0.9123518]
[1643727916979,0.75107333,2741.8,2739.9,0.9123518]
[1643727917222,0.75107333,2741.8,2740.2,0.01257312]
[1643727917223,2.05234466,2741.7,2740.2,0.01257312]
[1643727917423,0.3169269,2741.6,2740.2,0.01257312]
[1643727917629,3.31955026,2741.5,2740.5,0.77196589]
[1643727917827,3.31955026,2741.5,2740.2,0.01257312]
[1643727918426,0.3169269,2741.6,2740.4,0.32317394]
[1643727918830,0.3169269,2741.6,2740.2,0.01257312]
[1643727919027,0.3169269,2741.6,2740.0,0.3]
[1643727919028,0.01280071,2741.3,2740.0,0.3]
[1643727919230,0.01280071,2741.3,2739.3,1.824889]
[1643727919231,1.428,2741.2,2739.3,1.824889]
[1643727919428,1.428,2741.2,2739.9,0.71152555]
[1643727919429,0.79585832,2740.9,2739.9,0.71152555]
[1643727919630,2.6730466,2740.8,2739.9,0.71152555]
[1643727919830,0.41867621,2740.7,2739.9,0.71152555]
[1643727920031,22.01585832,2740.9,2739.9,0.71152555]
[1643727920032,3.17284543,2740.6,2739.9,0.71152555]
[1643727920329,2.24146491,2740.5,2739.9,0.71152555]
[1643727920531,0.428,2740.6,2739.3,1.824889]
[1643727920730,0.428,2740.6,2739.4,0.3]
[1643727920969,0.3666,2740.6,2739.4,0.3]
[1643727921175,1.1824,2741.8,2739.6,0.01220282]
[1643727921377,1.1824,2741.8,2739.6,2.71447968]
[1643727921378,0.44169389,2741.1,2739.6,2.71447968]
[1643727921574,0.44169389,2741.1,2739.7,0.1824]
[1643727921777,0.44169389,2741.1,2739.7,0.4824]
[1643727922178,0.44169389,2741.1,2739.7,0.1824]
[1643727922379,0.4232396,2741.0,2739.7,0.1824]
[1643727922578,0.40972815,2740.5,2739.7,0.1824]
[1643727922980,0.40972815,2740.5,2739.5,0.1824]
[1643727923381,0.40972815,2740.5,2739.0,0.13819997]
[1643727923382,0.428,2740.4,2739.0,0.13819997]
[1643727923579,0.428,2740.4,2739.3,0.8873719]
[1643727923779,0.428,2740.4,2739.0,0.13819997]
[1643727923780,1.35744222,2740.4,2739.0,0.13819997]
[1643727923986,0.33507405,2739.7,2739.0,0.13819997]
[1643727924182,0.428,2739.9,2739.0,0.13819997]
[1643727924382,0.428,2739.9,2739.0,0.32069997]
[1643727924584,0.428,2739.9,2739.0,0.13819997]
[1643727924839,1.34995746,2739.9,2739.0,0.13819997]
[1643727925037,0.428,2739.9,2739.0,0.13819997]
[1643727925236,0.38775572,2739.8,2739.0,0.13819997]
[1643727925438,0.428,2739.7,2739.0,0.13819997]
[1643727925644,0.428,2739.7,2739.0,0.12819997]
[1643727926240,0.428,2739.7,2739.0,0.42819997]
[1643727926443,0.428,2739.7,2738.1,1.83850109]
[1643727926849,0.01271376,2739.5,2738.1,1.8258]